Cogmind - Beta 11 X4 @@@ ROGUE MODE // 2021.05.16 @ 18:23:01 Player: Vectis Result: Destroyed by as-79820 with Assembled Rifle Performance ------------- Evolutions (0) 0 Regions Visited (2) 400 Robots Destroyed (20) 100 Value Destroyed (490) 490 Prototype IDs (3) 60 Alien Tech Used (0) 0 Bonus (-212) -212 TOTAL SCORE: 838 Bonus ------- Friendly Fire -212 Cogmind --------- Core Integrity 0/250 Matter 260/300 Energy 125/125 System Corruption 11% Temperature Cool (5) Movement Rolling (110) Ox2 Location -10/Mines Parts ------- > --- POWER (1) -------- Light Ion Engine > --- PROPULSION (2) --- Wheel Wheel > --- UTILITY (2) ------ Heat Sink High-capacity Storage Unit > --- WEAPON (2) ------- Light Assault Rifle Mini Grenade Launcher > --- INVENTORY (20) --- Ion Engine Ion Engine Light Treads Light Treads Wheel Wheel Wheel Particle Gun Beam Cannon Assault Rifle Light Cannon Mining Claw Mining Claw Peak State ------------ > --- POWER ------------ Light Ion Engine > --- PROPULSION ------- Wheel Wheel > --- UTILITY ---------- Heat Sink High-capacity Storage Unit > --- WEAPON ----------- Light Assault Rifle Mini Grenade Launcher > --- INVENTORY -------- Ion Engine Ion Engine Light Treads Light Treads Wheel Wheel Wheel Particle Gun Beam Cannon Assault Rifle Light Cannon Mining Claw Mining Claw [Rating: 9] Favorites ----------- Power Ion Engine Engine Ion Engine Propulsion Wheel Treads Light Treads Leg Aluminum Leg Wheel Wheel Utility High-capacity Storage Unit Device Structural Scanner Storage High-capacity Storage Unit Processor Visual Processing Unit Weapon EM Pulse Gun Energy Gun EM Pulse Gun Ballistic Gun Light Assault Rifle Launcher Grenade Launcher Special Weapon Mining Laser Slashing Weapon Mining Claw Build | -11 -10 -10 ------- Run | Scr Mat Min Slots Evolved . | . . . Power . | . . . Propulsion . | . . . Utility . | . . . Weapon . | . . . Parts Attached 45 | . 23 22 Power 2 | . 1 1 Engine 2 | . 1 1 Core . | . . . Reactor . | . . . Propulsion 12 | . 6 6 Treads 3 | . 3 . Leg . | . . . Wheel 9 | . 3 6 Hover . | . . . Flight . | . . . Utility 7 | . 6 1 Device 4 | . 3 1 Storage 2 | . 2 . Processor 1 | . 1 . Hackware . | . . . Protection . | . . . Artifact . | . . . Weapon 24 | . 10 14 Energy Gun 10 | . 6 4 Energy Cannon . | . . . Ballistic Gun 2 | . . 2 Ballistic Cannon . | . . . Launcher 6 | . 1 5 Special Weapon 2 | . . 2 Impact Weapon . | . . . Slashing Weapon 4 | . 3 1 Piercing Weapon . | . . . Special Melee Weapon . | . . . Unidentified Prototypes . | . . . Parts Lost 13 | . . 13 Power 1 | . . 1 Propulsion 5 | . . 5 Utility 1 | . . 1 Weapon 6 | . . 6 Highest Loss Streak 4 | . . 4 Average Slot Usage (%) 97 | . 98 95 Engine 13 | . 14 13 Treads 11 | . 16 . Leg 2 | . 3 . Wheel 13 | . 8 26 Device 9 | . 7 13 Storage 14 | . 14 14 Processor 3 | . 5 . Energy Gun 22 | . 27 9 Ballistic Gun 4 | . . 14 Naked Turns . | . . . Heaviest Build 50 | 12 50 50 Greatest Support 40 | 20 40 20 Greatest Overweight (x) 4 | . 2 4 Average Overweight (x) 1 | . . 2 Largest Inventory Capacity 20 | 8 20 20 Average Capacity 14 | 8 11 20 Most Carried 18 | 6 18 18 Average Carried 11 | 6 9 14 Final Capacity 20 | 8 20 20 Final Carried 18 | 6 18 13 Class Distribution -------------------- 100% | Mutant Dominant Class ---------------- Mutant | -10/Materials Mutant | -10/Mines Resources | -11 -10 -10 ----------- Run | Scr Mat Min Matter Collected 798 | 200 272 326 Remotely . | . . . Salvage Created 838 | . 666 172 Parts 41 | . 37 4 Haulers Intercepted 1 | . 1 . Recyclers Shooed 1 | . 1 . Parts Field Recycled . | . . . Retrieved Matter . | . . . Parts Self-Destructed . | . . . Prevented . | . . . Kills | -11 -10 -10 ------- Run | Scr Mat Min Combat Hostiles Destroyed 21 | . 8 13 Melee 2 | . . 2 Guns 12 | . 6 6 AOE 7 | . 2 5 Classes Destroyed 9 | . 8 1 Worker 3 | . 3 . Builder 1 | . 1 . Hauler 1 | . 1 . Recycler 1 | . 1 . Mechanic 1 | . 1 . Operator 1 | . 1 . Watcher 2 | . 2 . Grunt 10 | . 8 2 Assembled 11 | . . 11 Best Kill Streak 6 | . 3 6 Combat Bots Only 6 | . 2 6 Max Kills in Single Turn 2 | . 2 2 Gunslinging . | . . . Exploded 2 | . 1 2 Melee 1 | . . 1 Uniques/NPCs Destroyed . | . . . Combat | -11 -10 -10 -------- Run | Scr Mat Min Damage Taken 1108 | . 214 894 Core 253 | . 30 223 Absorbed by Shields . | . . . Core Remaining (%) 100 | 100 . . Volleys Fired 100 | . 44 56 Largest 2 | . 2 2 Hottest 100 | . 80 100 Shots Fired 185 | . 89 96 Gun 173 | . 88 85 Cannon . | . . . Launcher 8 | . 1 7 Special 4 | . . 4 Kinetic 30 | . . 30 Thermal 28 | . . 28 Explosive 8 | . 1 7 Electromagnetic 119 | . 88 31 Robot Hit Streak 8 | . 8 6 Robot Miss Streak 7 | . 4 7 Penetration Max . | . . . Secondary Targets 1 | . 1 . Max Gunslinging Chain 1 | . 1 . Shots Hit Robots 102 | . 54 48 Core Hits 56 | . 24 32 Critical Kills . | . . . Critical Parts Destroyed 1 | . . 1 Critical Strikes 4 | . 2 2 Destroy 1 | . . 1 Corrupt 3 | . 2 1 Melee Attacks 11 | . 7 4 Impact . | . . . Slashing 11 | . 7 4 Piercing . | . . . Sneak Attacks 2 | . 2 . Combat Hostiles . | . . . Follow-up Attacks . | . . . Damage Inflicted 2214 | . 1072 1142 Guns 1222 | . 743 479 Cannons . | . . . Explosions 714 | . 137 577 Melee 275 | . 192 83 Ramming 3 | . . 3 Kinetic 135 | . . 135 Thermal 236 | . 137 99 Explosive 577 | . . 577 Electromagnetic 988 | . 743 245 Impact . | . . . Slashing 275 | . 192 83 Piercing . | . . . Highest Corruption 11 | . 5 11 Average Corruption 5 | . 4 8 Corruption Purged . | . . . Effects 58 | . 32 26 Message Errors 6 | . 5 1 Matter Fused 10 | . 5 5 Heat Flow Errors 8 | . 8 . Energy Discharges 10 | . 6 4 Data Loss (minor) 11 | . 5 6 Data Loss (major) 2 | . 1 1 Misfires 3 | . 2 1 Alerts 2 | . . 2 Misdirections 3 | . . 3 Weapon Failures 3 | . . 3 Overload Shots . | . . . Overflow Damage 176 | . 162 14 Projectiles . | . . . Explosions 4 | . . 4 Melee 172 | . 162 10 Knockbacks . | . . . Impact . | . . . Kinetic . | . . . Secondary . | . . . Self-Inflicted Damage 74 | . 24 50 Shots 3 | . 1 2 Rammed 1 | . . 1 Targets Rammed 1 | . . 1 Kicked . | . . . Crushed . | . . . Highest Temperature 408 | . 263 408 Average Temperature 100 | . 67 157 Received Heat Transfer 204 | . 108 96 Effects 3 | . . 3 Interference 2 | . . 2 Matter Decay 1 | . . 1 Siege Activations . | . . . Robots Corrupted 1 | . 1 . Combat Hostiles . | . . . Parts Fried 6 | . 4 2 Impact Corruptions . | . . . Robots Melted . | . . . Combat Hostiles . | . . . Parts Melted . | . . . Heat Transferred 446 | . 150 296 Parts Sabotaged . | . . . Parts Stolen . | . . . Parts Stripped . | . . . Power Chain Reactions 3 | . 3 . Missiles Intercepted . | . . . Alert | -11 -10 -10 ------- Run | Scr Mat Min Peak Influence 183 | . 183 45 Initial 22 | . . 22 Average 46 | . 59 13 Maximum Alert Level . | . . . Low Security (%) 100 | 100 100 100 Level 1 . | . . . Level 2 . | . . . Level 3 . | . . . Level 4 . | . . . Level 5 . | . . . High Security . | . . . Max Security . | . . . Squads Dispatched 1 | . 1 . Investigation 1 | . 1 . Extermination . | . . . Reinforcement . | . . . Assault . | . . . Garrison . | . . . Intercept . | . . . Construction Impeded . | . . . Haulers Reinforced . | . . . Cargo Convoy Interrupts . | . . . Stealth | -11 -10 -10 --------- Run | Scr Mat Min Distress Signals 1 | . 1 . Communications Jammed . | . . . Distress Signals . | . . . Times Spotted 43 | . 18 25 Peak Tracking Total 6 | . 2 6 Tactical Retreats 9 | . 3 6 Traps | -11 -10 -10 ------- Run | Scr Mat Min Traps Triggered 4 | . 4 . Indirectly . | . . . Trap Hack Attempts . | . . . Triggered . | . . . Disarmed 4 | . 4 . Reprogrammed . | . . . Reused . | . . . Traps Extracted . | . . . Installed . | . . . Triggered . | . . . Machines | -11 -10 -10 ---------- Run | Scr Mat Min Machines Disabled 5 | . 5 . Max in Single Turn 2 | . 2 . Machines Sabotaged . | . . . Garrisons Compromised . | . . . Overloaded Fab Kills . | . . . Fab Network Shutdowns . | . . . Hacking | -11 -10 -10 --------- Run | Scr Mat Min Machines Accessed 11 | . 11 . Terminals 8 | . 8 . Fabricators . | . . . Repair Stations 1 | . 1 . Recycling Units 2 | . 2 . Scanalyzers . | . . . Garrison Access . | . . . Total Hacks 37 | . 37 . Successful 23 | . 23 . Failed 13 | . 13 . Catastrophic . | . . . Database Lockouts 1 | . 1 . Manual 34 | . 34 . Terminals 30 | . 30 . Fabricators . | . . . Repair Stations 1 | . 1 . Recycling Units 6 | . 6 . Scanalyzers . | . . . Garrison Access . | . . . Terminal Hacks 9 | . 9 . Record 1 | . 1 . Part Schematic 1 | . 1 . Robot Schematic 1 | . 1 . Robot Analysis 4 | . 4 . Prototype ID Bank 1 | . 1 . Disarm Traps 1 | . 1 . Fabricator Hacks . | . . . Repair Station Hacks . | . . . Recycling Unit Hacks . | . . . Scanalyzer . | . . . Garrison Access Hacks . | . . . Unauthorized Hacks 14 | . 14 . Terminals 11 | . 11 . Track 2 | . 2 . Assimilate 2 | . 2 . Botnet 5 | . 5 . Disrupt 1 | . 1 . Operators 1 | . 1 . Fabricators . | . . . Repair Stations . | . . . Recycling Units 3 | . 3 . Recyclers 1 | . 1 . Mask 2 | . 2 . Scanalyzers . | . . . Garrison Access . | . . . Data Cores Recovered . | . . . Used . | . . . Hacking Detections 10 | . 10 . Full Trace Events . | . . . Feedback Events . | . . . Feedback Blocked . | . . . Robot Schematics Acquired 1 | . 1 . Robots Built . | . . . Matter . | . . . Time . | . . . Total Robot Build Rating . | . . . Part Schematics Acquired 1 | . 1 . Parts Built . | . . . Matter . | . . . Time . | . . . Total Part Build Rating . | . . . Parts Repaired . | . . . Time . | . . . Parts Recycled . | . . . Recycled Matter . | . . . Retrieved Matter . | . . . Retrieved Components . | . . . Parts Scanalyzed . | . . . Part Schematics Acquired . | . . . Parts Damaged . | . . . Bothacking | -11 -10 -10 ------------ Run | Scr Mat Min Used RIF Installer . | . . . Robots Hacked . | . . . Non-combat . | . . . Combat . | . . . Robot Hacks Applied . | . . . Relay Couplers Released . | . . . Robots Rewired . | . . . Allies Hacked . | . . . Hacks Repelled . | . . . Allies | -11 -10 -10 -------- Run | Scr Mat Min Total Allies 4 | . 1 3 Largest Group 3 | . 1 3 Highest-Rated Group 40 | . 10 40 Highest-Rated Ally 16 | . 10 16 Total Orders 3 | . 1 2 STAY 2 | . 1 1 FOLLOW 1 | . . 1 Ally Attacks 17 | . . 17 Total Damage 238 | . . 238 Kills . | . . . Allies Corrupted . | . . . Allies Melted . | . . . Intel | -11 -10 -10 ------- Run | Scr Mat Min Robot Analysis Total 4 | . 4 . Derelict Logs Recovered . | . . . Drone Launches . | . . . Drone Recoveries . | . . . Exploration | -11 -10 -10 ------------- Run | Scr Mat Min Turns Passed 2461 | 8 1731 722 Spaces Moved 1394 | 7 946 441 Core . | . . . Treads 474 | . 474 . Legs 118 | 7 111 . Wheels 802 | . 361 441 Hover . | . . . Flight . | . . . Fastest Speed 80 | 120 80 110 Average Speed 128 | 120 136 111 Slowest Speed 160 | 120 160 140 Overloaded Moves . | . . . Propulsion Burnouts . | . . . Robots Hopped . | . . . Cave-ins Triggered . | . . . Exploration Rate (%) 54 | 2 98 62 Regions Visited 2 Branch Regions 1 Pre-discovered Areas . | . . . Known Exits Taken . | . . . Unknown Exits Taken 2 | 1 1 . Scrap Searched . | . . . Spaces Dug 14 | . 2 12 Terrain Destroyed 55 | . 22 33 Melee 2 | . 2 . Projectile 4 | . . 4 AOE 49 | . 20 29 Terrain Rammed . | . . . Walls Destroyed . | . . . Machines Disabled . | . . . Actions | -11 -10 -10 --------- Run | Scr Mat Min Total 1853 | 6 1290 557 Wait 259 | . 232 27 Move 1392 | 6 945 441 Hop . | . . . Pick Up 28 | . 22 6 Fast Attach 7 | . 6 1 Attach 17 | . 5 12 Detach . | . . . Swap 21 | . 12 9 Drop 17 | . 17 . Fire 100 | . 44 56 Melee 11 | . 7 4 Ram 1 | . . 1 Kick . | . . . Crush . | . . . Escape Stasis . | . . . Rewire . | . . . Trap . | . . . Miscellaneous . | . . . Route ------- -11/Scrapyard -10/Materials (discovered 4 exits: [*Mat x3] / [*Min]) -10/Mines (discovered 1 exit: [*Mat]) History --------- Turn | Location | Event 1 | -11/Scrapyard | Discovered new exit (range 1) 9 | -11/Scrapyard | Entered Materials 206 | -10/Materials | Discovered new exit (range 11) 311 | -10/Materials | Build established: Mutant 598 | -10/Materials | Discovered new exit (range 18) 1181 | -10/Materials | Discovered new exit (range 9) 1297 | -10/Materials | Discovered new exit (range 12) 1368 | -10/Materials | Central database locked down 1740 | -10/Materials | Entered Mines 1743 | -10/Mines | Assembled infested the area 1748 | -10/Mines | Assisted by a Guerilla fighting off Assembled 1841 | -10/Mines | Assisted by bots powering up and referring to "LRC-V3" 1980 | -10/Mines | Discovered new exit (range 5) 2034 | -10/Mines | Core integrity fell below 50% 2034 | -10/Mines | System corruption reached 10% 2093 | -10/Mines | Core integrity fell below 20% 2117 | -10/Mines | Lost 4 parts (1p1n2w) 2462 | -10/Mines | Destroyed by as-79820 with Assembled Rifle Last Messages --------------- 02420_ System corrupted: Lgt. Assault Rifle jammed. 02426_ Wheel destroyed. 02426_ System corrupted by crushing effect (+1). 02428_ as-68046 destroyed. 02431_ Acquired 10 matter. 02436_ IVIDP1DE IHL7QOZ=VWRYGAWG2I=ZWQDG>J 02444_ Acquired Wheel. 02445_ Acquired 12 matter. 02449_ K-01 Serf collects debris. 02452_ Acquired 12 matter. 02453_ K-01 Serf collects debris. 02456_ Grenade Launcher destroyed. 02456_ K-01 Serf collects debris. 02457_ Destroyed Asb. Hover Unit. 02458_ K-01 Serf collects debris. 02458_ Grenade Launcher destroyed. 02459_ System corrupted: IFF burst signal emitted. 02460_ K-01 Serf collects debris. 02460_ Destroyed Asb. Hover Unit. 02460_ as-22052 destroyed. Map ----- +----------------------------------------------------+ | ????????????????#### ####???????????????????? | | ????????????????###%* ###???????????????????? | | ????????????????## = ##???????????????????? | | ????????????????## ##???????????????????? | | ????????????????### ## ###### ??????????????? | | ????????????????### #### ####### ??????????????? | | ?????????????????## #### #### ??????????????? | | ?????????????????## #### ###? ???????????????? | | ?????????????????## #### #### ##???????????????? | | ?????????????????## #### ### ##???????????????? | | ?????????????????## #### ##$ ##???????????????? | | ????????########### ### < ##???????????????? | | ????????########### ### ##???????????????? | | ????????## % % !%########???????????????? | | ??######## ############ #########???????????????? | | ??######## ############# ###?????????????????????? | | ??## ##????????### ######??????????????????? | | ??## ##### ##?????????## ######??????????????????? | | ??## ##### ##?????????## #####???????????????? | | ??## #??## ##????########### #####???????????????? | | #### #####*##????######## # ##???????????????? | | #### ##### ##????## = !## ##???????????? | | ## ## ##????## !% ### ##???????????? | | ## ##!##????## !!!%%% a%* ##??????????? | | ## """ ##%##???### %k%!%a *r=% ##??????????? | | ## """ ##[########= *!%@% ######????????### | | ## """ ########%= =! * #%= *#####???????? ? | | ## ##!## ######## =%## ###??????????? ?? | | ## ## ## #####!=|!! #######??????????? #?? | | ########## ## #####=###%%|!######?????????? #?? | | ########## ! %!##### #####!| ##??????### #?? | | ???????### = =%#### ##### !* ######### !#??? | | ???????## * ##??###### % #??? | | ???????## ### ##??###### ######## ##??? | | ???????## #### ##?????### ##?????## ##??# | | ???????## ###### ##????## ##??????# #### | | ???????## ####### ##????# #???????## ## | | ???????## ## ##????# #????????# | | ???????### ### #######????## ##???????# | | ???????######### #?#####?????## ###????## | | ????????######## ##???????????# |##???# | | ??????????????## ##??????????## !* ##### | | ???#######???## #???????????# [ | | ???# ##### #???????????# #### ! | | ???# ##???????????## #??# | | ???# ###?????????????### #??## ## | | ???## ### #######?????????????????# ###?## ##? | | ????# ### #???????????????????????# ! *#??######?? | | ????# #???????????????????????# ! #?????????? | | ????# #####???????????????????????### ######????? | +----------------------------------------------------+ Best States ------------- Heat Dissipation 35 Energy Generation 10 Energy Capacity 250 Matter Stores 300 Matter Capacity 300 Sight Range 18 Terrain Scan Density 10 Evasion (%) 55 Recoil Reduction 2 Item Schematics ----------------- Huge Storage Unit | -10/Materials | Hacked Robot Schematics ------------------ O-16 Technician | -10/Materials | Hacked Fabricated ------------ Nothing Alien Tech Used ----------------- None Achievements -------------- None Challenges ------------ None Game ------ Seed PropulsionElectronCore Manual? 0 Play Time 00:21:33 Cumulative 255.4 hours Start 2021.05.16 @ 17:44:46 End 2021.05.16 @ 18:23:01 Sessions 3 Manual Loads 0 Difficulty Rogue Special Mode None Game No. 111 Rogue 111 Adventurer 0 Explorer 0 Win Type - Total 9 Types 7/0/0/1/0/1/0/0/0 Lore% 84 Gallery% 83 Achievement% 74 Wizard Run 0 Options --------- ASCII 1 Keyboard 0 Movement Numpad Keybinds 0 Fullscreen 1 Font 18/Smallcaps Map View 76x50 Tactical HUD 1 Map Filters NONE Filters NONE Steam 1 RUN: 7e3d62bb-7c74-479f-9c18-d4636e1ffbb6